Cogmind - Beta 13 @@@ ROGUE MODE // 2024.05.05 @ 19:57:29 Player: GayPredator Result: Self-destructed Performance ------------- Evolutions (7) 3500 Regions Visited (13) 2600 Robots Destroyed (128) 640 Value Destroyed (3954) 3954 Prototype IDs (5) 100 Alien Tech Used (0) 0 Bonus (1361) 1361 TOTAL SCORE: 12155 Bonus ------- Triggered Max Security 1000 High Alert Combat Kills 228 Follower Combat Kills 59 Aligned with FarCom 300 Friendly Fire -226 Cogmind --------- Core Integrity 54/1300 Matter 14/300 Energy 22/100 System Corruption 4% Temperature Cool (9) Movement Core (150) Ox2 Location -3/Testing Parts ------- > --- POWER (2) -------- (None) > --- PROPULSION (4) --- (None) > --- UTILITY (9) ------ Enhanced Optical Array > --- WEAPON (6) ------- Enhanced Force Lance > --- INVENTORY (5) ---- Advanced Terrain Scanner Advanced ECM Suite Peak State ------------ > --- POWER ------------ Heavy Deuterium Engine > --- PROPULSION ------- Improved Treads Improved Treads Medium Treads Medium Treads > --- UTILITY ---------- Medium Storage Unit Improved Terrain Scan Processor Hardened Medium Armor Plating Hacking Suite Improved Hacking Suite System Shield System Shield > --- WEAPON ----------- XL Autogun Array Power Maul > --- INVENTORY -------- Heavy Deuterium Engine Structural Scanner Improved Terrain Scanner Advanced ECM Suite Hardened Medium Armor Plating Hardlight Generator Improved Grenade Launcher Datajack [Rating: 80] Favorites ----------- Power Improved Ion Engine Engine Improved Ion Engine Power Core Fission Core Propulsion Improved Treads Treads Improved Treads Leg Advanced VSS Leg Wheel Wheel Hover Unit Antigrav Array Flight Unit Impulse Thruster Utility Medium Storage Unit Device Improved Terrain Scanner Storage Medium Storage Unit Processor Improved Terrain Scan Processor Hackware System Shield Protection Improved Light Armor Plating Weapon Autogun Energy Gun EM Pulse Gun Energy Cannon Nova Cannon Ballistic Gun Autogun Ballistic Cannon Heavy Gauss Cannon Launcher Rocket Launcher Impact Weapon Power Maul Piercing Weapon Enhanced Force Lance Special Melee Weapon Datajack Build | -11 -10 -10 -9 -9 -9 -8 -8 -7 -6 -5 -4 -3 -3 ------- Run | Yrd Mat Min Mat Min Exi Min Mat Fac Fac Fac Fac Res Tes Slots Evolved 14 | . . . 2 . . . 2 2 2 2 2 2 . Power 1 | . . . . . . . . . . . 1 . . Propulsion 2 | . . . 1 . . . . . . 1 . . . Utility 7 | . . . . . . . 1 2 2 . 1 1 . Weapon 4 | . . . 1 . . . 1 . . 1 . 1 . Parts Attached 136 | 8 2 . 11 5 1 7 9 24 10 21 14 15 9 Power 9 | 1 . . 2 . . . 1 3 . 1 . 1 . Engine 7 | 1 . . 2 . . . 1 3 . . . . . Core 2 | . . . . . . . . . . 1 . 1 . Reactor . | . . . . . . . . . . . . . . Propulsion 32 | 2 . . 3 . . . 5 5 . 5 5 6 1 Treads 20 | 2 . . 3 . . . 5 5 . 5 . . . Leg 4 | . . . . . . . . . . . 3 1 . Wheel 1 | . . . . . . . . . . . 1 . . Hover 1 | . . . . . . . . . . . . 1 . Flight 6 | . . . . . . . . . . . 1 4 1 Utility 47 | 2 . . 1 2 1 2 2 11 3 7 7 7 2 Device 23 | 1 . . . . . 1 1 4 . 4 5 5 2 Storage 2 | 1 . . . 1 . . . . . . . . . Processor 4 | . . . . . . . 1 . . . 1 2 . Hackware 5 | . . . . . . . . 2 1 1 1 . . Protection 13 | . . . 1 1 1 1 . 5 2 2 . . . Artifact . | . . . . . . . . . . . . . . Weapon 48 | 3 2 . 5 3 . 5 1 5 7 8 2 1 6 Energy Gun 1 | 1 . . . . . . . . . . . . . Energy Cannon 3 | . . . . . . . . . . . . 1 2 Ballistic Gun 24 | 2 2 . 4 2 . 3 1 3 3 4 . . . Ballistic Cannon 1 | . . . . . . . . . . . 1 . . Launcher 10 | . . . 1 1 . 2 . 2 . 2 . . 2 Special Weapon . | . . . . . . . . . . . . . . Impact Weapon 6 | . . . . . . . . . 3 2 1 . . Slashing Weapon . | . . . . . . . . . . . . . . Piercing Weapon 2 | . . . . . . . . . . . . . 2 Special Melee Weapon 1 | . . . . . . . . . 1 . . . . Unidentified Prototypes 5 | . . . . . . . 1 1 . 1 . 1 1 Parts Lost 37 | . . . 1 . . . 1 2 . 14 6 2 11 Power 5 | . . . . . . . 1 2 . 1 . . 1 Propulsion 17 | . . . 1 . . . . . . 6 5 1 4 Utility 7 | . . . . . . . . . . 2 . 1 4 Weapon 8 | . . . . . . . . . . 5 1 . 2 Highest Loss Streak 14 | . . . 1 . . . 1 1 . 14 3 2 11 To Critical Strikes . | . . . . . . . . . . . . . . Average Slot Usage (%) 74 | . 99 100 95 100 100 100 71 75 73 78 12 44 51 Engine 6 | . 14 14 11 11 11 11 8 6 6 1 . . . Treads 21 | . 28 28 29 33 33 33 26 23 20 20 . . . Flight 1 | . . . . . . . . . . . . 13 13 Device 6 | . 14 14 7 . . 4 9 10 5 3 1 8 11 Storage 6 | . 14 14 11 11 11 11 9 7 6 4 . . . Processor 4 | . . . . . . . 9 7 6 4 2 6 13 Hackware 6 | . . . . . . . . 6 20 21 3 4 4 Protection 3 | . . . 3 11 11 6 . 4 . . . . . Ballistic Gun 13 | . 27 28 29 32 33 22 9 6 5 7 . . . Naked Turns 75 | . . . . . . . . . . 20 55 . . Heaviest Build 52 | 12 15 15 24 29 29 31 33 45 52 49 6 19 34 Greatest Support 102 | 40 40 40 63 63 63 63 69 79 79 102 54 28 28 Greatest Overweight (x) 4 | . . . . . . . . . . 4 1 1 1 Average Overweight (x) . | . . . . . . . . . . . . . . Largest Inventory Capacity 10 | 8 8 8 8 10 10 10 10 10 10 10 5 5 5 Average Capacity 8 | 7 8 8 8 9 10 10 10 10 10 9 5 5 5 Most Carried 10 | 3 7 8 8 9 10 10 10 10 10 10 5 5 5 Average Carried 7 | 2 5 7 7 8 9 10 9 9 9 8 4 4 4 Final Capacity 10 | 8 8 8 8 10 10 10 10 10 10 5 5 5 5 Final Carried 10 | 3 7 8 8 9 10 10 10 10 10 5 5 5 2 Class Distribution -------------------- 27% | Skirmisher 20% | Mutant 17% | Hacker-Skirmisher 15% | Tank 11% | Hacker-Assassin 3% | Sprinter Dominant Class ---------------- Mutant | -10/Materials Mutant | -10/Mines Skirmisher | -9/Materials Tank | -9/Mines Tank | -9/Exiles Skirmisher | -8/Mines Skirmisher | -8/Materials Skirmisher | -7/Factory Hacker-Skirmisher | -6/Factory Hacker-Assassin | -5/Factory Mutant | -4/Factory Sprinter | -3/Research Mutant | -3/Testing Resources | -11 -10 -10 -9 -9 -9 -8 -8 -7 -6 -5 -4 -3 -3 ----------- Run | Yrd Mat Min Mat Min Exi Min Mat Fac Fac Fac Fac Res Tes Matter Collected 3901 | 167 229 27 602 252 . 116 376 1244 58 552 99 169 10 Remotely . | . . . . . . . . . . . . . . Salvage Created 4508 | 110 229 43 880 195 . 63 488 1454 68 711 37 105 125 Parts 295 | 3 14 5 51 19 . 10 41 84 4 50 2 8 4 Haulers Intercepted 2 | . . . 1 . . . . 1 . . . . . Recyclers Shooed 3 | . . . . . . . . . 1 2 . . . Parts Field Recycled . | . . . . . . . . . . . . . . Retrieved Matter . | . . . . . . . . . . . . . . Parts Self-Destructed . | . . . . . . . . . . . . . . Prevented . | . . . . . . . . . . . . . . Kills | -11 -10 -10 -9 -9 -9 -8 -8 -7 -6 -5 -4 -3 -3 ------- Run | Yrd Mat Min Mat Min Exi Min Mat Fac Fac Fac Fac Res Tes Combat Hostiles Destroyed 90 | . 7 3 19 10 . 7 7 20 1 12 . 2 2 Melee 1 | . . . . . . . . . . 1 . . . Guns 72 | . 7 3 16 8 . 2 7 20 1 8 . . . Cannons 2 | . . . . . . . . . . . . 2 . AOE 15 | . . . 3 2 . 5 . . . 3 . . 2 Classes Destroyed 16 | 2 2 . 6 1 . 1 1 3 . . . . . Worker 4 | . . . . . . . . 1 . 2 1 . . Builder 15 | . . . 1 . . . 2 5 . 6 1 . . Tunneler 2 | 1 . . . 1 . . . . . . . . . Hauler 2 | . . . 1 . . . . 1 . . . . . Recycler 2 | 1 . . . . . . . 1 . . . . . Operator 2 | . . . 1 . . . . 1 . . . . . Watcher 10 | . . . 5 . . . 2 2 1 . . . . Swarmer 23 | . 3 3 3 6 . 6 . . 1 . . 1 . Grunt 40 | . 4 . 13 2 . . 4 8 . 7 . . 2 Brawler 1 | . . . . . . . . 1 . . . . . Duelist 3 | . . . 1 1 . . . 1 . . . . . Sentry 9 | . . . 2 . . . 2 3 . 2 . . . Demolisher 1 | . . . . 1 . . . . . . . . . Specialist 2 | . . . . . . . 2 . . . . . . Hunter 6 | . . . . . . 1 . 4 . 1 . . . Programmer 6 | . . . . . . . . 3 . 2 . 1 . Best Kill Streak 11 | 1 7 3 11 3 . 3 5 4 1 11 1 1 2 Combat Bots Only 7 | . 7 3 6 3 . 3 3 4 1 5 . 1 2 Max Kills in Single Turn 3 | 1 1 2 3 2 . 2 3 2 1 3 1 1 2 Gunslinging 1 | . . . 1 . . . . . . . . . . Exploded 2 | . . . 2 2 . 2 . . . 1 . . 2 Melee 1 | . . . . . . . . . . 1 . . . Uniques/NPCs Destroyed . | . . . . . . . . . . . . . . Combat | -11 -10 -10 -9 -9 -9 -8 -8 -7 -6 -5 -4 -3 -3 -------- Run | Yrd Mat Min Mat Min Exi Min Mat Fac Fac Fac Fac Res Tes Hostile Shots Fired 714 | . 25 6 38 23 . 13 13 60 39 194 134 59 110 Missed 268 | . 6 2 7 5 . 4 4 21 11 62 58 43 45 Damage Taken 8332 | . 177 36 379 297 . 115 145 520 410 2571 1612 471 1599 Core 3006 | . 35 . 55 26 . 8 47 23 15 577 974 172 1074 Absorbed by Shields 40 | . . . . . . . . 40 . . . . . Regen/Repaired (Parts) 175 | . . . 80 . . . . 95 . . . . . Core Remaining (%) 75 | 100 . 86 . . . 77 91 96 98 42 15 . . Volleys Fired 227 | 10 11 3 42 18 . 13 18 58 4 33 . 14 3 Largest 3 | 2 2 2 3 3 . 3 1 1 1 3 . 1 1 Hottest 113 | 40 46 46 69 79 . 69 60 60 60 96 . 113 113 Shots Fired 380 | 20 22 6 118 51 . 22 18 60 4 42 . 14 3 Gun 344 | 20 22 6 116 50 . 16 18 57 4 35 . . . Cannon 16 | . . . . . . . . . . . . 14 2 Launcher 20 | . . . 2 1 . 6 . 3 . 7 . . 1 Special . | . . . . . . . . . . . . . . Kinetic 344 | 20 22 6 116 50 . 16 18 57 4 35 . . . Thermal 16 | . . . . . . . . . . . . 14 2 Explosive 20 | . . . 2 1 . 6 . 3 . 7 . . 1 Electromagnetic . | . . . . . . . . . . . . . . Robot Hit Streak 20 | 7 4 3 20 4 . 4 5 10 1 7 . 10 2 Robot Miss Streak 7 | 2 5 4 2 3 . 1 4 6 7 4 . 1 . Penetration Max . | . . . . . . . . . . . . . . Secondary Targets 7 | . 2 1 3 1 . . . . . . . . . Max Gunslinging Chain 1 | . 1 1 1 1 . . . . . . . . . Shots Hit Robots 263 | 12 11 2 76 29 . 9 16 54 3 38 2 8 3 Core Hits 201 | 4 8 3 39 13 . 6 17 52 2 47 2 2 6 Critical Kills 4 | . 1 . 1 1 . . . . . . 1 . . Critical Parts Destroyed 3 | . . . 1 . . 1 . . . . 1 . . Critical Strikes 8 | . 1 . 2 1 . 1 . . . . 2 . 1 Destroy 5 | . 1 . 2 1 . 1 . . . . . . . Smash 2 | . . . . . . . . . . . 2 . . Impale 1 | . . . . . . . . . . . . . 1 Melee Attacks 18 | . . . . . . . . . 2 12 2 . 2 Impact 16 | . . . . . . . . . 2 12 2 . . Slashing . | . . . . . . . . . . . . . . Piercing 2 | . . . . . . . . . . . . . 2 Sneak Attacks 3 | . . . . . . . . . . 1 2 . . Combat Hostiles . | . . . . . . . . . . . . . . Follow-up Attacks . | . . . . . . . . . . . . . . Damage Inflicted 11596 | 118 204 41 1392 647 . 525 943 3302 96 3057 235 370 666 Guns 8045 | 118 204 41 1174 466 . 138 937 3302 70 1595 . . . Cannons 407 | . . . . . . . . . . . . 370 37 Explosions 2635 | . . . 218 159 . 385 . . . 1307 . . 566 Melee 411 | . . . . . . . . . . 153 195 . 63 Ramming 98 | . . . . 22 . 2 6 . 26 2 40 . . Kinetic 8045 | 118 204 41 1174 466 . 138 937 3302 70 1595 . . . Thermal 407 | . . . . . . . . . . . . 370 37 Explosive 2635 | . . . 218 159 . 385 . . . 1307 . . 566 Electromagnetic . | . . . . . . . . . . . . . . Impact 348 | . . . . . . . . . . 153 195 . . Slashing . | . . . . . . . . . . . . . . Piercing 63 | . . . . . . . . . . . . . 63 Highest Corruption 15 | . . . . . . . . 5 . 15 3 3 4 Average Corruption 3 | . . . . . . . . 4 . 3 2 1 3 Corruption Purged . | . . . . . . . . . . . . . . Corruption Blocked . | . . . . . . . . . . . . . . Effects 45 | . . . . . . . . 22 . 13 5 4 1 Message Errors 5 | . . . . . . . . 4 . . . . 1 Matter Fused 15 | . . . . . . . . 4 . 5 5 1 . Heat Flow Errors 5 | . . . . . . . . 3 . 1 . 1 . Energy Discharges 7 | . . . . . . . . 5 . 1 . 1 . Parts Rejected 1 | . . . . . . . . 1 . . . . . Data Loss (minor) 4 | . . . . . . . . 1 . 2 . 1 . Data Loss (major) 5 | . . . . . . . . 2 . 3 . . . Misfires 2 | . . . . . . . . 2 . . . . . Misdirections 1 | . . . . . . . . . . 1 . . . Overload Shots . | . . . . . . . . . . . . . . Overflow Damage 308 | . . . . . . 28 . . . 135 72 17 56 Projectiles 17 | . . . . . . . . . . . . 17 . Explosions 111 | . . . . . . 28 . . . 83 . . . Melee 180 | . . . . . . . . . . 52 72 . 56 Knockbacks 2 | . . . . . . . . . 1 . 1 . . Impact 2 | . . . . . . . . . 1 . 1 . . Kinetic . | . . . . . . . . . . . . . . Secondary . | . . . . . . . . . . . . . . Self-Inflicted Damage 137 | . . . . . . 45 . . . 78 14 . . Shots 2 | . . . . . . 1 . . . 1 . . . Rammed 19 | . . . . 5 . 1 2 . 2 3 6 . . Targets Rammed 22 | . . . . 6 . 1 2 . 2 3 8 . . Kicked 2 | . . . . . . . . . . . 2 . . Crushed 1 | . . . . 1 . . . . . . . . . Highest Temperature 312 | . 18 12 144 84 . 48 219 213 60 248 9 312 48 Average Temperature 60 | . 9 6 53 34 . 13 81 72 25 63 9 95 21 Received Heat Transfer 1267 | . 39 . 147 36 . . 63 111 . 360 300 . 211 Siege Activations . | . . . . . . . . . . . . . . Robots Corrupted . | . . . . . . . . . . . . . . Combat Hostiles . | . . . . . . . . . . . . . . Parts Fried 3 | . . . . . . . . . . 1 2 . . Impact Corruptions 3 | . . . . . . . . . . 1 2 . . Robots Melted . | . . . . . . . . . . . . . . Combat Hostiles . | . . . . . . . . . . . . . . Parts Melted . | . . . . . . . . . . . . . . Heat Transferred 333 | . . . . . . . . . . . . 296 37 Parts Sabotaged . | . . . . . . . . . . . . . . Parts Stolen . | . . . . . . . . . . . . . . Parts Stripped . | . . . . . . . . . . . . . . Power Chain Reactions . | . . . . . . . . . . . . . . Alert | -11 -10 -10 -9 -9 -9 -8 -8 -7 -6 -5 -4 -3 -3 ------- Run | Yrd Mat Min Mat Min Exi Min Mat Fac Fac Fac Fac Res Tes Peak Influence 1696 | 10 184 141 619 264 . 132 302 472 220 315 344 323 1696 Initial 189 | . 6 71 54 72 . . 49 46 189 31 84 180 142 Average 190 | 2 73 78 262 151 . 21 171 161 188 126 101 200 1605 Maximum Alert Level 5 | . . . 2 1 . . 1 2 1 1 1 1 5 Low Security (%) 75 | 100 100 100 58 88 . 100 67 74 97 75 89 45 . Level 1 16 | . . . 12 11 . . 32 15 2 24 10 54 . Level 2 4 | . . . 28 . . . . 10 . . . . . Level 3 . | . . . . . . . . . . . . . . Level 4 . | . . . . . . . . . . . . . . Level 5 . | . . . . . . . . . . . . . . High Security . | . . . . . . . . . . . . . . Max Security 2 | . . . . . . . . . . . . . 99 Squads Dispatched 46 | . . . 4 . . . 1 8 . 9 3 9 12 Investigation 12 | . . . 3 . . . . 2 . 3 . 4 . Extermination 7 | . . . . . . . . 3 . 2 1 1 . Reinforcement 12 | . . . 1 . . . 1 3 . 4 2 1 . Assault 12 | . . . . . . . . . . . . . 12 Garrison 3 | . . . . . . . . . . . . 3 . Intercept . | . . . . . . . . . . . . . . Searches Triggered . | . . . . . . . . . . . . . . Construction Impeded 2 | . . . . . . . . . . 2 . . . Haulers Reinforced 2 | . . . . . . . . . . 2 . . . Active Scanning Responses . | . . . . . . . . . . . . . . Cargo Convoy Interrupts . | . . . . . . . . . . . . . . Stealth | -11 -10 -10 -9 -9 -9 -8 -8 -7 -6 -5 -4 -3 -3 --------- Run | Yrd Mat Min Mat Min Exi Min Mat Fac Fac Fac Fac Res Tes Distress Signals 15 | . 1 . 2 1 . . . 2 . 3 3 3 . Communications Jammed . | . . . . . . . . . . . . . . Distress Signals . | . . . . . . . . . . . . . . Times Spotted 216 | . 10 3 26 10 . 5 9 25 8 32 39 23 26 Peak Tracking Total 23 | . 5 3 8 3 . 2 3 4 6 14 19 15 23 Tactical Retreats 18 | . . . . . . . . 1 1 2 8 4 2 Traps | -11 -10 -10 -9 -9 -9 -8 -8 -7 -6 -5 -4 -3 -3 ------- Run | Yrd Mat Min Mat Min Exi Min Mat Fac Fac Fac Fac Res Tes Traps Triggered 8 | . . . 1 . . . 1 2 . . 2 2 . Indirectly . | . . . . . . . . . . . . . . Trap Hack Attempts 8 | . . . . . . . . . 8 . . . . Triggered . | . . . . . . . . . . . . . . Disarmed . | . . . . . . . . . . . . . . Reprogrammed 2 | . . . . . . . . . 2 . . . . Reused . | . . . . . . . . . . . . . . Traps Extracted . | . . . . . . . . . . . . . . Installed . | . . . . . . . . . . . . . . Triggered 2 | . . . . . . . . . . 1 1 . . Objects Rigged 4 | . . . . . . . . . . 4 . . . Exploded 1 | . . . . . . . . . . 1 . . . Machines | -11 -10 -10 -9 -9 -9 -8 -8 -7 -6 -5 -4 -3 -3 ---------- Run | Yrd Mat Min Mat Min Exi Min Mat Fac Fac Fac Fac Res Tes Machines Disabled 6 | . . . . . . . . 3 . 2 . . 1 Max in Single Turn 2 | . . . . . . . . 1 . 2 . . 1 Garrison Access 1 | . . . . . . . . . 1 . . . . Machines Repaired . | . . . . . . . . . . . . . . Machines Dismantled . | . . . . . . . . . . . . . . Machines Sabotaged . | . . . . . . . . . . . . . . Overloaded Fab Kills . | . . . . . . . . . . . . . . Hacking | -11 -10 -10 -9 -9 -9 -8 -8 -7 -6 -5 -4 -3 -3 --------- Run | Yrd Mat Min Mat Min Exi Min Mat Fac Fac Fac Fac Res Tes Machines Accessed 38 | . 3 . 6 . 1 . 1 9 1 7 3 7 . Terminals 21 | . 3 . 5 . . . 1 4 . 4 1 3 . Fabricators 6 | . . . . . . . . 1 . 2 2 1 . Repair Stations 4 | . . . 1 . . . . 2 . . . 1 . Recycling Units 2 | . . . . . . . . . . . . 2 . Scanalyzers 3 | . . . . . . . . 2 . 1 . . . Garrison Access 1 | . . . . . . . . . 1 . . . . Total Hacks 139 | . 8 . 19 . 1 . 5 26 2 53 6 19 . Successful 69 | . 3 . 11 . 1 . 1 12 1 34 3 3 . Failed 70 | . 5 . 8 . . . 4 14 1 19 3 16 . Catastrophic 6 | . . . 1 . . . 1 1 . 1 . 2 . Database Lockouts . | . . . . . . . . . . . . . . Manual 46 | . 3 . 6 . 1 . 5 9 . 16 2 4 . Terminals 79 | . 8 . 17 . . . 5 10 . 30 1 8 . Fabricators 20 | . . . . . . . . 4 . 9 5 2 . Repair Stations 8 | . . . 2 . . . . 4 . . . 2 . Recycling Units 7 | . . . . . . . . . . . . 7 . Scanalyzers 22 | . . . . . . . . 8 . 14 . . . Garrison Access 2 | . . . . . . . . . 2 . . . . Terminal Hacks 22 | . 3 . 7 . 1 . . . . 10 1 . . Record 1 | . . . . . 1 . . . . . . . . Part Schematic 2 | . . . 1 . . . . . . 1 . . . Level Access Points 2 | . . . . . . . . . . 1 1 . . Branch Access Points 3 | . 1 . 1 . . . . . . 1 . . . Emergency Access Points 1 | . . . . . . . . . . 1 . . . Terminal Index 1 | . . . 1 . . . . . . . . . . Scanalyzer Index 2 | . 1 . . . . . . . . 1 . . . Alert Level 2 | . . . 1 . . . . . . 1 . . . Unreport Threat 2 | . . . 2 . . . . . . . . . . Locate Traps 2 | . 1 . . . . . . . . 1 . . . Security Status 1 | . . . 1 . . . . . . . . . . Zone Layout 3 | . . . . . . . . . . 3 . . . Fabricator Hacks 9 | . . . . . . . . 3 . 4 2 . . Network Status 3 | . . . . . . . . 1 . 1 1 . . Load Schematic 4 | . . . . . . . . 1 . 2 1 . . Build 2 | . . . . . . . . 1 . 1 . . . Repair Station Hacks 4 | . . . 2 . . . . 2 . . . . . Scan Component 2 | . . . 1 . . . . 1 . . . . . Repair 2 | . . . 1 . . . . 1 . . . . . Recycling Unit Hacks 2 | . . . . . . . . . . . . 2 . Report Inventory 1 | . . . . . . . . . . . . 1 . Retrieve Components 1 | . . . . . . . . . . . . 1 . Scanalyzer 20 | . . . . . . . . 6 . 14 . . . Insert Component 10 | . . . . . . . . 3 . 7 . . . Analyze 10 | . . . . . . . . 3 . 7 . . . Garrison Access Hacks 1 | . . . . . . . . . 1 . . . . Seal Access 1 | . . . . . . . . . 1 . . . . Unauthorized Hacks 11 | . . . 2 . . . 1 1 . 6 . 1 . Terminals 11 | . . . 2 . . . 1 1 . 6 . 1 . Assimilate 2 | . . . . . . . . . . 1 . 1 . Botnet 7 | . . . 2 . . . 1 1 . 3 . . . Detonate 1 | . . . . . . . . . . 1 . . . Disrupt 1 | . . . . . . . . . . 1 . . . Fabricators . | . . . . . . . . . . . . . . Repair Stations . | . . . . . . . . . . . . . . Recycling Units . | . . . . . . . . . . . . . . Scanalyzers . | . . . . . . . . . . . . . . Garrison Access . | . . . . . . . . . . . . . . Data Cores Recovered 1 | . . . . . . . . 1 . . . . . Used 1 | . . . . . . . . 1 . . . . . Hacking Detections 35 | . 3 . 5 . . . 1 9 . 7 3 7 . Full Trace Events 11 | . . . 3 . . . . 2 . 3 . 3 . Feedback Events . | . . . . . . . . . . . . . . Feedback Blocked 1 | . . . . . . . . . . 1 . . . Robot Schematics Acquired . | . . . . . . . . . . . . . . Robots Built . | . . . . . . . . . . . . . . Authchips . | . . . . . . . . . . . . . . Time . | . . . . . . . . . . . . . . Total Robot Build Rating . | . . . . . . . . . . . . . . Part Schematics Acquired 11 | . . . 1 . . . . 2 . 8 . . . Parts Built 4 | . . . . . . . . 2 . 2 . . . Authchips . | . . . . . . . . . . . . . . Time 62 | . . . . . . . . 31 . 31 . . . Total Part Build Rating 8 | . . . . . . . . 4 . 4 . . . Parts Repaired 2 | . . . 1 . . . . 1 . . . . . Time 51 | . . . 32 . . . . 19 . . . . . Parts Recycled . | . . . . . . . . . . . . . . Recycled Matter . | . . . . . . . . . . . . . . Retrieved Matter . | . . . . . . . . . . . . . . Retrieved Components . | . . . . . . . . . . . . . . Parts Scanalyzed 10 | . . . . . . . . 3 . 7 . . . Part Schematics Acquired 9 | . . . . . . . . 2 . 7 . . . Parts Damaged 1 | . . . . . . . . . . 1 . . . Bothacking | -11 -10 -10 -9 -9 -9 -8 -8 -7 -6 -5 -4 -3 -3 ------------ Run | Yrd Mat Min Mat Min Exi Min Mat Fac Fac Fac Fac Res Tes Used RIF Installer . | . . . . . . . . . . . . . . Robots Hacked . | . . . . . . . . . . . . . . Non-combat . | . . . . . . . . . . . . . . Combat . | . . . . . . . . . . . . . . Robot Hacks Applied . | . . . . . . . . . . . . . . Relay Couplers Released . | . . . . . . . . . . . . . . Fabnet Peak Effective % . | . . . . . . . . . . . . . . Robots Rewired . | . . . . . . . . . . . . . . Allies Hacked 1 | . . . . . . . . . . 1 . . . Hacks Repelled . | . . . . . . . . . . . . . . Allies | -11 -10 -10 -9 -9 -9 -8 -8 -7 -6 -5 -4 -3 -3 -------- Run | Yrd Mat Min Mat Min Exi Min Mat Fac Fac Fac Fac Res Tes Total Allies 8 | . . . . 3 . . . . . 1 3 1 . Largest Group 3 | . . . . 3 3 3 2 . . 1 3 1 . Highest-Rated Group 138 | . . . . 40 40 40 21 . . 8 138 26 . Highest-Rated Ally 46 | . . . . 16 16 16 13 . . 8 46 26 . Total Orders 4 | . . . . . . . . . . 1 1 1 1 EXPLORE 4 | . . . . . . . . . . 1 1 1 1 Ally Attacks 19 | . . . . . . 7 5 . . . 7 . . Total Damage 307 | . . . . . . 61 44 . . . 202 . . Kills 2 | . . . . . . 1 . . . . 1 . . Allies Corrupted . | . . . . . . . . . . . . . . Allies Melted . | . . . . . . . . . . . . . . Intel | -11 -10 -10 -9 -9 -9 -8 -8 -7 -6 -5 -4 -3 -3 ------- Run | Yrd Mat Min Mat Min Exi Min Mat Fac Fac Fac Fac Res Tes Robot Analysis Total . | . . . . . . . . . . . . . . Derelict Logs Recovered 1 | . . . . 1 . . . . . . . . . Drone Launches 4 | . . . . . . . . . . 1 1 1 1 Drone Recoveries 2 | . . . . . . . . . . 1 1 . . Exploration | -11 -10 -10 -9 -9 -9 -8 -8 -7 -6 -5 -4 -3 -3 ------------- Run | Yrd Mat Min Mat Min Exi Min Mat Fac Fac Fac Fac Res Tes Turns Passed 7707 | 134 170 136 658 594 438 441 407 1699 416 1230 699 468 217 Spaces Moved 4462 | 59 82 74 294 285 271 58 216 810 180 648 468 830 187 Core 299 | 4 . . . . . . . . . 77 187 15 16 Treads 2896 | 55 82 74 294 285 271 58 216 810 180 571 . . . Legs 215 | . . . . . . . . . . . 135 80 . Wheels 44 | . . . . . . . . . . . 44 . . Hover 52 | . . . . . . . . . . . . 52 . Flight 956 | . . . . . . . . . . . 102 683 171 Fastest Speed 31 | 50 160 160 160 160 160 160 160 160 160 50 40 31 31 Average Speed 121 | 152 160 160 160 160 160 160 160 160 160 153 62 39 41 Slowest Speed 250 | 160 160 160 160 160 160 160 160 160 160 250 100 100 114 Overloaded Moves . | . . . . . . . . . . . . . . Propulsion Burnouts . | . . . . . . . . . . . . . . Robots Hopped 10 | . . . . . . . . . . 1 . 6 3 Cave-ins Triggered . | . . . . . . . . . . . . . . Exploration Rate (%) 27 | 6 21 26 39 57 51 14 19 28 7 19 19 22 61 Regions Visited 13 Branch Regions 5 Pre-discovered Areas 2 | . . . . 1 1 . . . . . . . . Known Exits Taken 5 | . 1 . 1 1 . . . . . 1 1 . . Unknown Exits Taken 8 | 1 . 1 . . 1 1 1 1 1 . . 1 . Scrap Searched 2 | . . . . 1 . 1 . . . . . . . Spaces Dug 24 | . . . . . . . 2 5 2 9 . 5 1 Terrain Destroyed 239 | . . . 17 7 . 63 13 29 4 73 . 6 27 Melee 12 | . . . . . . . . . 2 9 . . 1 Projectile 35 | . . . . . . . 13 8 2 6 . 6 . AOE 192 | . . . 17 7 . 63 . 21 . 58 . . 26 Terrain Rammed . | . . . . . . . . . . . . . . Walls Destroyed . | . . . . . . . . . . . . . . Machines Disabled . | . . . . . . . . . . . . . . Actions | -11 -10 -10 -9 -9 -9 -8 -8 -7 -6 -5 -4 -3 -3 --------- Run | Yrd Mat Min Mat Min Exi Min Mat Fac Fac Fac Fac Res Tes Total 6505 | 82 104 87 414 389 278 385 278 1208 304 845 869 944 318 Wait 1504 | 3 2 10 52 73 . 305 14 290 90 117 357 78 113 Move 4428 | 58 81 73 293 284 270 57 215 809 179 645 467 816 181 Hop 10 | . . . . . . . . . . 1 . 6 3 Pick Up 57 | 2 5 1 7 1 2 . 10 10 2 5 4 7 1 Fast Attach 63 | 8 2 . 7 2 . 1 5 10 3 8 6 10 1 Attach 44 | . . . 2 . 1 . 3 5 6 7 8 5 7 Detach 20 | 1 . . . . 1 . . 2 4 2 6 1 3 Swap 30 | . . . 2 3 . 6 1 10 1 6 . . 1 Drop 65 | . 3 . 9 2 4 2 10 14 3 6 3 6 3 Fire 227 | 10 11 3 42 18 . 13 18 58 4 33 . 14 3 Melee 18 | . . . . . . . . . 2 12 2 . 2 Ram 6 | . . . . . . . . . . . 6 . . Kick 2 | . . . . . . . . . . . 2 . . Crush 14 | . . . . 6 . 1 2 . 2 3 . . . Escape Stasis 1 | . . . . . . . . . . . . 1 . Rewire 8 | . . . . . . . . . . . 8 . . Trap 8 | . . . . . . . . . 8 . . . . Miscellaneous . | . . . . . . . . . . . . . . Route ------- -11/Scrapyard -10/Materials -10/Mines -9/Materials (discovered 2 exits: *Mat / *Min) -9/Mines (discovered 2 exits: *Mat / *Exi) -9/Exiles -8/Mines -8/Materials -7/Factory -6/Factory -5/Factory (discovered 8 exits: *Fac x4 / Upp x2 / Ext x2) -4/Factory (discovered 4 exits: *Res x4) -3/Research -3/Testing History --------- Turn | Location | Event 25 | -11/Scrapyard | Discovered new exit (range 16) 135 | -11/Scrapyard | Entered Materials 276 | -10/Materials | Destroyed 7 combat bots 280 | -10/Materials | Identified exit to Mines 305 | -10/Materials | Entered Mines 312 | -10/Mines | Build established: Mutant 324 | -10/Mines | Received a Rocket Launcher from a helpful Derelict 337 | -10/Mines | Met a Derelict bent on vengeance 409 | -10/Mines | Discovered new exit (range 10) 441 | -10/Mines | Entered Materials 441 | -9/Materials | Evolved 2 slots: Propulsion x1, Weapon x1 700 | -9/Materials | Identified exit to Mines 822 | -9/Materials | Discovered new exit (range 13) 1021 | -9/Materials | Repaired Autogun 1099 | -9/Materials | Entered Mines 1100 | -9/Mines | Learned location of Storage (-7) 1168 | -9/Mines | Assembled infested the area 1294 | -9/Mines | Discovered new exit (range 5) 1313 | -9/Mines | Build established: Tank 1599 | -9/Mines | Assisted by bots powering up and referring to "LRC-V3" 1633 | -9/Mines | Identified exit to Exiles 1680 | -9/Mines | Deemed a non-threat by the Exiles lab entrance 1693 | -9/Mines | Entered Exiles 1693 | -9/Exiles | Accompanied by 3 allies 1714 | -9/Exiles | Discovered new exit (range 15) 1733 | -9/Exiles | Met 8R-AWN 1761 | -9/Exiles | Met EX-HEX 1823 | -9/Exiles | Met EX-DEC 1829 | -9/Exiles | Learned location of Zion (-7) 1855 | -9/Exiles | Met EX-BIN 1877 | -9/Exiles | Aligned with FarCom system 1879 | -9/Exiles | Given EX-Vault access code 1916 | -9/Exiles | Opened EX-Vault 1928 | -9/Exiles | Found Prototype Ballistic Gun 1969 | -9/Exiles | Warned to stay clear of 0b10 Research branches 2131 | -9/Exiles | Left Exiles lab with XL Autogun Array 2131 | -9/Exiles | Entered Mines 2131 | -8/Mines | Accompanied by 3 allies 2438 | -8/Mines | Build established: Skirmisher 2565 | -8/Mines | Discovered new exit (range 3) 2572 | -8/Mines | Entered Materials 2572 | -8/Materials | Accompanied by 2 allies 2572 | -8/Materials | Evolved 2 slots: Utility x1, Weapon x1 2574 | -8/Materials | Identified XL Autogun Array 2929 | -8/Materials | Discovered new exit (range 15) 2979 | -8/Materials | Entered Factory 2979 | -7/Factory | Evolved 2 slots: Utility x2 3469 | -7/Factory | Repaired Imp. Light Armor Plating 4210 | -7/Factory | Build established: Hacker-Skirmisher 4476 | -7/Factory | Fabricated Imp. Treads? 4573 | -7/Factory | Discovered new exit (range 16) 4678 | -7/Factory | Entered another Factory area 4678 | -6/Factory | Evolved 2 slots: Utility x2 5058 | -6/Factory | Discovered new exit (range 14) 5094 | -6/Factory | Entered another Factory area 5094 | -5/Factory | Evolved 2 slots: Propulsion x1, Weapon x1 5393 | -5/Factory | Fabricated Imp. Treads? 5404 | -5/Factory | Build established: Hacker-Assassin 6205 | -5/Factory | Identified exit to Factory 6205 | -5/Factory | Identified exit to Upper Caves 6205 | -5/Factory | Identified exit to Extension 6208 | -5/Factory | System corruption reached 10% 6251 | -5/Factory | Released all parts (5) 6258 | -5/Factory | Core integrity fell below 50% 6281 | -5/Factory | Lost 14 parts (1p6n2u5w) 6319 | -5/Factory | Lost 5 allies 6324 | -5/Factory | Entered another Factory area 6324 | -4/Factory | Evolved 2 slots: Power x1, Utility x1 6564 | -4/Factory | Build established: Mutant 6719 | -4/Factory | Allied Derelicts emerged from ambush trap array 6736 | -4/Factory | P-70 Sage assimilated allied PT-9W0(g) 6863 | -4/Factory | Core integrity fell below 50% 6987 | -4/Factory | Identified exit to Research 6996 | -4/Factory | Spotted B-86 Titan 7007 | -4/Factory | Core integrity fell below 20% 7023 | -4/Factory | Entered Research 7023 | -3/Research | Evolved 2 slots: Utility x1, Weapon x1 7034 | -3/Research | Lost 3 parts (3n) 7189 | -3/Research | Garrison activated, responded to threat 7227 | -3/Research | Found Enh. Force Lance 7302 | -3/Research | Found Prototype Device 7302 | -3/Research | Identified Exp. Thermal Defense Suite 7487 | -3/Research | Discovered new exit (range 8) 7491 | -3/Research | Entered Testing 7492 | -3/Testing | Maximum security lockdown engaged 7622 | -3/Testing | Found Prototype Device 7622 | -3/Testing | Identified AEGIS Remote Shield 7649 | -3/Testing | Spotted Executioner 7663 | -3/Testing | Found Unknown Launcher 7664 | -3/Testing | Identified Fusion Bomb Launcher 7678 | -3/Testing | Spotted Striker 7680 | -3/Testing | Spotted Striker 7686 | -3/Testing | Spotted Alpha 7 7700 | -3/Testing | Core integrity fell below 50% 7705 | -3/Testing | Core integrity fell below 20% 7708 | -3/Testing | Self-destructed Last Messages --------------- 07694_ Fusion Bomb Launcher destroyed. 07695_ Acquired 3 matter. 07695_ Acquired 4 matter. 07696_ Penetrated by Slug. 07697_ Acquired 3 matter. 07699_ Penetrated by Slug. 07699_ Nova Cannon destroyed. 07699_ Slug penetrates Striker. 07700_ P-80 Master resets Striker, system corruption cleaned. 07702_ Slug penetrates Reinforced Barrier. 07702_ Slug penetrates P-80 Master. 07702_ Imp. Hacking Suite destroyed. 07704_ G-67 Veteran suffers critical hit (Impale). 07704_ Destroyed Lgt. Antimatter Reactor. 07705_ Adv. Targeting Computer destroyed. 07706_ Slug penetrates Reinforced Barrier. 07706_ Penetrated by Slug. 07706_ Striker suffers critical hit (Destroy). 07706_ Slug penetrates G-67 Veteran. 07708_ P-80 Master resets Striker, system corruption cleaned. Map ----- +----------------------------------------------------+ | ??????????########?????## = !!!##???? | | ??????????############### !!!###### | | ??????????## #############+########## | | ??????????## T" | | ??????????## " | | ????????####! ############+########### | | ????????##### ########### ##### | | ????????## #! ] ! # """"""" ##??? | | ????????## # ! # """"""" ##??? | | ????????## C # """"""" ##??? | | ????????##### # C !E ]+ ##??? | | ????????##### ########### = !##??? | | ???????????## ########### ! / ##??? | | ???????????## # #?## ! ##??? | | ???????????## # ] #?#############??? | | ???????????##!!# ]#?#############??? | | ???????????## / "T?? ##???????????????? | | ???????????# # """ ##???????????????? | | ??????????## !##???????????????? | | ?????????## [ ########???????????????? | | ?????????# [%* #######???????????????? | | ?????????# %Y# ?????????????????????? | | ??????????# Y ??????????????????????? | | ??????????? Yp #????????????????????### | | ????????#####pg####??????????????????# | | ????????#""" K@ 7#??????????????????# | | ????????#"" gK #??????????????????# | | ????????#"" g ##??????????????????# " | | ????????#"& "#???????????????????# " | | ????????#""" #???????????????????# " | | ????????#"""" "#???????????????????? | | ????????##########???????????????????# " | | ?????????????????????????????????????### | | ???????????????????????????????????????? | | ???????????????????????????????????????? | | ???????????????????????????????????????? | | ???????????????????????????????????????? | | ???????????????????????????????????????? | | ???????????????????????????????????????? | | ???????????????????????????????????????? | | | | | | | | | | | | | | | | | | | | | +----------------------------------------------------+ Best States ------------- Heat Dissipation 46 Energy Generation 18 Energy Capacity 310 Matter Stores 300 Matter Capacity 300 Sight Range 22 Terrain Scan Range 16 Terrain Scan Density 110 ECM Strength 2 Armor Coverage 450 Evasion (%) 71 Targeting Accuracy 8 Core Analysis 6 Recoil Reduction 4 Offensive Hacking 22 Defensive Hacking 20 Item Schematics ----------------- Propulsion Shielding | -9/Materials | Hacked Imp. Treads | -7/Factory | Scanalyzed Structural Scanner | -7/Factory | Scanalyzed Imp. Grenade Launcher | -5/Factory | Scanalyzed Hrd. Medium Armor Plating | -5/Factory | Scanalyzed Adv. ECM Suite | -5/Factory | Scanalyzed Datajack | -5/Factory | Scanalyzed Imp. Terrain Scanner | -5/Factory | Scanalyzed Hardlight Generator | -5/Factory | Scanalyzed Hvy. Deuterium Engine | -5/Factory | Scanalyzed Tesla Rifle | -5/Factory | Hacked Robot Schematics ------------------ None Fabricated ------------ Imp. Treads | x2 | -7/Factory Imp. Treads | x2 | -5/Factory Alien Tech Used ----------------- None Achievements -------------- None Challenges ------------ None Game ------ Seed DeuteriumSkeletonLance Manual? 0 Play Time 01:35:37 Cumulative 82.1 hours Start 2024.05.05 @ 16:47:58 End 2024.05.05 @ 19:57:29 Sessions 4 Manual Loads 0 Difficulty Rogue Special Mode None Game No. 59 Rogue 20 Adventurer 32 Explorer 7 Win Type - Total 0 Types 0/0/0/0/0/0/0/0/0 Lore% 24 Gallery% 55 Achievement% 41 Wizard Run 0 Options --------- Layout 1 ASCII 0 Keyboard 0 Movement Numpad Keybinds 0 Fullscreen 0 Font 16/Smallcaps Map View 64x42 Zoom Use 0% Tactical HUD 1 Map Filters NONE Filters NONE Steam 1 RUN: e9ab3d54-33ed-4a30-bc62-c5f0ae139a44